[Event "Grand Prix Romania 1st Stage 2024"]
[Site "Bucuresti"]
[Date "2024.03.23"]
[Round "1.6"]
[White "Fluture, Valentin-Petrica"]
[Black "Sokolov, Ivan"]
[Result "0-1"]
[ECO "B43"]
[WhiteElo "1827"]
[BlackElo "2590"]
[Annotator "TA"]
[PlyCount "146"]
[EventDate "2024.03.20"]
[EventCountry "ROU"]
[SourceTitle "playchess.com"]
[Source "ChessBase"]
[SourceQuality "1"]
[TimeControl "900+5"]

{[%evp 11,146,12,35,25,36,12,28,33,43,43,53,31,59,0,29,41,38,0,0,-11,-10,-25,-19,-43,-44,-36,-49,-50,-23,-6,-8,-9,-10,-30,-35,-40,-39,-645,-658,-655,-629,-629,-606,-1222,-239,-244,-29,-29,-37,-35,-66,-38,-28,-35,-22,-17,0,-4,0,0,0,-3,0,-37,-42,-127,-124,-139,-137,-181,-173,-173,-173,-173,-173,-173,-160,-293,-291,-296,-296,-292,-292,-284,-283,-281,-277,-352,-344,-494,-514,-625,-622,-623,-625,-772,-752,-779,-779,-779,-779,-777,-767,-767,-767,-730,-716,-29963,-4137,-29962,-4137,-29976,-29977,-29977,-29978,-29976,-29979,-29979,-29980,-29980,-29979,-29963,-4137,-29984,-29985,-29987,-29988,-29988,-29986,-29986,-29987,-29987,-29986,-29985,-29986,-29988,-29989]} 1. e4 {[%emt 0:00:04]} c5 {[%emt 0:00:02]} 2. Nf3 {[%emt 0:00:02]} e6 {[%emt 0:00:01]} 3. d4 {[%emt 0:00:02]} cxd4 {[%emt 0:00:02]} 4. Nxd4 {[%emt 0:00:01]} a6 {[%emt 0:00:01]} 5. Nc3 {[%emt 0:00:02]} b5 {[%emt 0:00:04]} 6. Bd3 {[%emt 0:00:08]} Bb7 {[%emt 0:00:05]} 7. Qe2 {[%emt 0:00:03]} Ne7 {[%emt 0:00:09][%cal Bg8e7,Be7g6,Bg6e5,Be5d3][%mdl 32]} 8. O-O {[%emt 0:00:06]} Nbc6 {[%emt 0:00:03]} 9. Nb3 {[%emt 0:00:07] Weiß hat minimalen Vorteil.} Ng6 {[%emt 0:00:13]} 10. Be3 {[%emt 0:00:15]} d6 {[%emt 0:00:08]} 11. Rad1 {[%emt 0:00:12]} Nge5 {[%emt 0:00:10]} 12. a3 {[%emt 0:00:32]} (12. f4 $14 Nxd3 13. Rxd3) 12... Be7 {[%emt 0:00:05]} 13. f4 {[%emt 0:00:17]} Nxd3 {[%emt 0:00:02]} 14. cxd3 {[%emt 0:00:10]} O-O {[%emt 0:00:07]} 15. d4 {[%emt 0:02:19]} b4 {[%emt 0:00:04]} 16. axb4 {[%emt 0:00:13]} Nxb4 {[%emt 0:00:02]} 17. d5 {[%emt 0:00:40]} exd5 {[%emt 0:00:09]} 18. exd5 {[%emt 0:00:43]} a5 {[%emt 0:00:11] ...Ba6 wäre nun fies.} 19. Qd2 {[%emt 0:00:25]} Bf6 {[%emt 0:00:31]} 20. Bd4 {[%emt 0:00:39]} Ba6 {[%emt 0:00:17]} (20... Bxd5 $2 21. Bxf6 Qxf6 22. Nxd5 $18) 21. Rf3 {[%emt 0:00:39]} Bc4 {[%emt 0:00:21][%csl LRb3,LRd5] Das Läuferpaar ist gut.} 22. Nc1 {[%emt 0:00:19]} (22. Bxf6 {vereinfacht} Qxf6 23. Nd4 Bxd5 24. Nxd5 Nxd5 25. Nb5) 22... Re8 {[%emt 0:00:03]} (22... Nxd5 $2 23. Nxd5 Bxd5 24. Bxf6 Qxf6 25. Qxd5 $18) 23. Bxf6 {[%emt 0:00:14]} Qxf6 {[%emt 0:00:03]} 24. Qd4 $2 {[%emt 0:01:23][%mdl 8192] [#]} (24. N1e2 $15) 24... Re1+ $3 $19 {[%emt 0:00:46][%mdl 512]} 25. Kf2 {[%emt 0:00:29] [#] Qxf6 ist eine echte Drohung.} Rf1+ $1 {[%emt 0:00:16][%mdl 512]} 26. Kg3 {[%emt 0:01:01]} Qg6+ {[%emt 0:00:07]} 27. Kh3 {[%emt 0:00:16] [#]} h5 $2 {[%emt 0:00:13]} 28. f5 {[%emt 0:01:21] [#]} Qg4+ {[%emt 0:00:07][%mdl 512]} 29. Qxg4 $11 {[%emt 0:00:05]} hxg4+ {[%emt 0:00:11]} 30. Kxg4 {[%emt 0:00:01]} Rxd1 {[%emt 0:00:05]} 31. Nxd1 {[%emt 0:00:06]} Bxd5 {[%emt 0:00:04]} 32. Rf2 {[%emt 0:00:19]} Rc8 {[%emt 0:00:24]} 33. Nc3 {[%emt 0:00:04]} Bc4 {[%emt 0:00:07]} (33... Rc4+ 34. Kg3 $17) 34. Rd2 {[%emt 0:00:35]} d5 {[%emt 0:00:02]} 35. N1e2 {[%emt 0:04:08]} f6 {[%emt 0:00:52]} 36. Nd4 {[%emt 0:00:00]} Nd3 {[%emt 0:00:22]} 37. Ne6 {[%emt 0:00:00][%cal Oc3d5]} Rb8 {[%emt 0:00:13]} 38. Nxd5 {[%emt 0:00:00] Ab hier gerät Weiß ins Schliddern.} Rxb2 $1 $17 {[%emt 0:00:16]} (38... Bxd5 $6 39. Rxd3 Bxg2 40. Rc3 $11) 39. Rxb2 {[%emt 0:00:00]} Nxb2 $15 {[%emt 0:00:02][%mdl 4096] Endspiel. KBN-KNN} 40. Nb6 {[%emt 0:00:00]} Bf1 {[%emt 0:01:04]} 41. Kf3 {[%emt 0:00:00]} a4 {[%emt 0:00:02]} 42. Nd4 {[%emt 0:00:00]} a3 {[%emt 0:00:04]} 43. Nc2 {[%emt 0:00:00]} a2 {[%emt 0:00:03]} 44. g3 {[%emt 0:00:00]} (44. Na1 $17 {war einen Versuch wert.}) 44... Bd3 $19 {[%emt 0:00:05][%csl LRc2,LRf5]} 45. Na1 {[%emt 0:00:00]} Bxf5 {[%emt 0:00:03]} 46. Nd5 {[%emt 0:00:00]} Kf7 {[%emt 0:00:26] Pariert Ne7.} 47. Ke3 {[%emt 0:00:00]} Nc4+ {[%emt 0:00:14]} 48. Kd4 {[%emt 0:00:00]} Ne5 {[%emt 0:00:04]} 49. Nc3 {[%emt 0:00:12]} Be6 {[%emt 0:00:07]} 50. h4 {[%emt 0:00:11]} (50. h3 $142) 50... Kg6 {[%emt 0:00:08]} 51. Ke4 {[%emt 0:00:11]} Kh5 {[%emt 0:00:06]} 52. Kf4 {[%emt 0:00:10]} Nd3+ {[%emt 0:00:05]} 53. Ke3 {[%emt 0:00:04]} Nc5 {[%emt 0:00:02]} 54. Kf4 {[%emt 0:00:20]} Nb3 {[%emt 0:00:07]} 55. Nxa2 {[%emt 0:00:12]} Nxa1 {[%emt 0:00:02]} 56. Nc3 {[%emt 0:00:03]} Nb3 {[%emt 0:00:06]} 57. Ne4 {[%emt 0:00:11]} Nd4 {[%emt 0:00:07] Droht stark ...Ne2+.} 58. Nc5 {[%emt 0:00:03]} Bg4 {[%emt 0:00:08] ( -> ...Ne6+)} 59. Ne4 {[%emt 0:00:03]} Ne2+ {[%emt 0:00:12]} 60. Ke3 {[%emt 0:00:01]} f5 {[%emt 0:00:03]} 61. Nd6 {[%emt 0:00:08]} Nxg3 {[%emt 0:00:03]} 62. Ne8 {[%emt 0:00:07]} g6 {[%emt 0:00:03]} 63. Nf6+ {[%emt 0:00:07]} Kxh4 {[%emt 0:00:04]} 64. Nd5 {[%emt 0:00:05]} Nh5 {[%emt 0:00:06]} 65. Kf2 {[%emt 0:00:02]} g5 {[%emt 0:00:10]} 66. Ne7 {[%emt 0:00:03]} Kh3 {[%emt 0:00:05]} (66... f4 $142 67. Nc6 Kh3 68. Ke1 Nf6 69. Ne5 Ne4 70. Nd3 f3 71. Nf2+ Nxf2 72. Kxf2 Bh5 73. Ke3 Kh2 74. Kf2 g4 (74... Kh3 {führt zum Matt.} 75. Kf1 Kh2 76. Ke1 g4 77. Kf1 g3 78. Ke1 f2+ 79. Kd2 f1=Q 80. Kc3 g2 81. Kd4 g1=Q+ 82. Kc3 Qe3+ 83. Kb4 Qb1+ 84. Kc4 Bf7#) 75. Ke3 g3 76. Kd4 g2 (76... f2 {wird mattgesetzt.} 77. Ke3 f1=Q 78. Kd4 g2 79. Ke4 Qc4+ 80. Kf5 g1=Q 81. Kf6 Qd5 82. Ke7 Qg7#) 77. Ke5 g1=Q (77... g1=B 78. Kf6 f2 79. Kf5 f1=Q+ 80. Ke6 Bg4+ 81. Ke7 Bc5+ 82. Kd8 Qf8+ 83. Kc7 Qc8#) 78. Kf6 Qd4+ 79. Kf5 f2 (79... Qg4+ 80. Ke5 f2 81. Kd5 f1=Q 82. Kc6 Qc8+ 83. Kd6 Qf6+ 84. Kd5 Bf3#) 80. Kg5 f1=Q (80... f1=R $2 {ist ein Selbstmatt.} 81. Kh6 Rg1 82. Kxh5 Qh8#) 81. Kxh5 Qf7+ 82. Kh6 Qh4#) 67. Kg1 {[%emt 0:00:07]} f4 {[%emt 0:00:03] Schwarz setzt Matt.} 68. Kf2 {[%emt 0:00:01]} Ng3 {[%emt 0:00:17]} 69. Ng6 {[%emt 0:00:07]} Kh2 {[%emt 0:00:07]} 70. Ne5 {[%emt 0:00:02]} Ne4+ {[%emt 0:00:04]} 71. Kf1 {[%emt 0:00:03]} Bh3+ {[%emt 0:00:06]} 72. Ke1 {[%emt 0:00:02]} g4 {[%emt 0:00:05]} 73. Nd3 {[%emt 0:00:07]} f3 {[%emt 0:00:05] Gewichteter Fehlerwert: Weiß=0.59/Schwarz=0.19 (sehr präzise) .  Verlustzug:     	Weiß=1     	---        Fehler:       	Weiß=4     	---        Ungenau:       	Weiß=3     	Schwarz=3     OK:         	Weiß=16    	Schwarz=19    Bester:       	Weiß=2     	Schwarz=3     Stark:        	---       	Schwarz=1     Brilliant:      	---       	Schwarz=1} 0-1

[Event "Grand Prix Romania 1st Stage 2024"]
[Site "Bucuresti"]
[Date "2024.03.23"]
[Round "1.7"]
[White "Mamedov, Rauf"]
[Black "Talmaci, Arsenie"]
[Result "1-0"]
[ECO "B10"]
[WhiteElo "2651"]
[BlackElo "1865"]
[Annotator "TA"]
[PlyCount "73"]
[EventDate "2024.03.20"]
[EventCountry "ROU"]
[SourceTitle "playchess.com"]
[Source "ChessBase"]
[SourceQuality "1"]
[TimeControl "900+5"]

{[%evp 9,73,93,94,63,87,83,80,78,76,71,75,73,105,100,117,122,137,116,179,158,158,184,164,84,100,87,79,102,106,95,91,98,141,92,94,85,163,155,186,186,174,175,723,889,854,853,866,858,832,702,791,767,856,847,802,774,783,776,811,781,787,885,1079,1065,2342,2152]} 1. e4 {[%emt 0:00:02]} c6 {[%emt 0:00:01]} 2. Nf3 {[%emt 0:00:10]} d5 {[%emt 0:00:02]} 3. e5 {[%emt 0:00:04]} Bf5 {[%emt 0:00:15]} 4. Nh4 {[%emt 0:00:03]} e6 {[%emt 0:01:01]} 5. Nxf5 {[%emt 0:00:02]} exf5 {[%emt 0:00:01]} 6. d4 {[%emt 0:00:01]} Ne7 {[%emt 0:00:25][%cal Oc6c5]} 7. Bd3 {[%emt 0:00:07]} Nd7 {[%emt 0:00:15]} 8. Nd2 {[%emt 0:00:10] White is better.} g6 {[%emt 0:00:13]} 9. Nf3 {[%emt 0:00:09]} Bg7 {[%emt 0:00:05]} 10. h4 {[%emt 0:00:45]} h5 {[%emt 0:00:22]} 11. Ng5 {[%emt 0:00:38] e6 is the strong threat.} O-O {[%emt 0:00:35][%cal Be8g8,Bg8h7,Bh7g7][%mdl 32]} 12. e6 {[%emt 0:01:26]} f6 {[%emt 0:00:06]} 13. Nf7 {[%emt 0:00:05] White has more active pieces.} Qc7 {[%emt 0:00:27]} (13... Rxf7 $16 14. exf7+ Kxf7) 14. Nh6+ {[%emt 0:00:03]} Kh7 {[%emt 0:00:16]} 15. Nxf5 $1 {[%emt 0:00:05]} Ne5 {[%emt 0:01:57]} 16. Nxg7 {[%emt 0:01:32]} (16. dxe5 $18 {Nxe7 would now be deadly.} Nxf5 17. g4 hxg4 18. Qxg4 fxe5 19. h5) 16... Nxd3+ $16 {[%emt 0:00:05]} 17. Qxd3 {[%emt 0:00:17]} Kxg7 {[%emt 0:00:02] Black is weak on the dark squares} 18. Bd2 {[%emt 0:00:11]} Qd6 {[%emt 0:00:37]} 19. O-O-O {[%emt 0:00:04]} Qxe6 {[%emt 0:00:23]} 20. Rde1 {[%emt 0:00:03]} Qf7 {[%emt 0:00:33]} 21. f3 {[%emt 0:00:02]} ({White should play} 21. Qf3) 21... Rh8 {[%emt 0:01:29]} 22. g4 {[%emt 0:00:03]} Nc8 {[%emt 0:00:51]} (22... Rae8 $16) 23. Bf4 $18 {[%emt 0:00:13]} Nb6 {[%emt 0:00:17][%cal Bc8b6,Bb6d7,Bd7f8,Bf8e6][%mdl 32] [#]} 24. g5 $1 $36 {[%emt 0:00:46][%mdl 2048] Black must now prevent gxf6+. White is in control.} Nd7 {[%emt 0:00:24]} 25. gxf6+ {[%emt 0:00:03]} Qxf6 $2 {[%emt 0:00:05]} (25... Nxf6 26. Be5 Kh6 27. Qd2+ Kh7) 26. Bg5 {[%emt 0:00:03] White is clearly winning.} Qd6 {[%emt 0:00:30]} 27. Re7+ {[%emt 0:00:03]} Kg8 {[%emt 0:01:08]} 28. Rhe1 {[%emt 0:00:03]} Nf8 {[%emt 0:00:10] [#] Prevents R1e6.} 29. R1e6 $3 {[%emt 0:00:55][%mdl 512]} Qxe6 {[%emt 0:00:01]} 30. Rxe6 {[%emt 0:00:01]} Nxe6 {[%emt 0:00:02]} 31. Qxg6+ {[%emt 0:00:02]} Ng7 {[%emt 0:00:01]} 32. Bf6 {[%emt 0:00:01]} Rh7 {[%emt 0:00:02]} 33. f4 {[%emt 0:00:01]} Rf8 {[%emt 0:00:22]} 34. Be5 {[%emt 0:00:01]} Rf7 {[%emt 0:00:26]} 35. b3 {[%emt 0:00:08]} a6 {[%emt 0:00:41]} 36. Kb2 {[%emt 0:00:02]} Kf8 {[%emt 0:01:17]} 37. Qxh7 {[%emt 0:00:05] Weighted Error Value: White=0.15 (very precise) /Black=0.23 (precise) .  Mistake:       	White=2     	Black=3      Inaccurate:     	---       	Black=2      OK:         	White=7     	Black=7      Best:        	White=1     	Black=2      Strong:       	White=1     	---} 1-0

[Event "Grand Prix Romania 1st Stage 2024"]
[Site "Bucuresti"]
[Date "2024.03.23"]
[Round "1.8"]
[White "Ifrim, Mihai"]
[Black "Kuzubov, Yuriy"]
[Result "0-1"]
[ECO "D02"]
[WhiteElo "1820"]
[BlackElo "2605"]
[Annotator "RC"]
[PlyCount "36"]
[EventDate "2024.03.20"]
[EventCountry "ROU"]
[SourceTitle "playchess.com"]
[Source "ChessBase"]
[SourceQuality "1"]
[TimeControl "900+5"]

1. d4 {[%emt 0:00:03]} Nf6 {[%emt 0:00:01]} 2. Nf3 {[%emt 0:00:02]} e6 {[%emt 0:00:02]} 3. Bf4 {[%emt 0:00:04]} d5 {[%emt 0:00:14]} 4. e3 {[%emt 0:00:03]} c5 {[%emt 0:00:06]} 5. c3 {[%emt 0:00:07]} Nc6 {[%emt 0:00:02]} 6. Nbd2 {[%emt 0:00:25]} Nh5 {[%emt 0:00:05]} 7. Bg5 {[%emt 0:00:18]} Qb6 {[%emt 0:00:02]} 8. Rb1 {[%emt 0:00:18]} h6 {[%emt 0:00:08]} 9. Bh4 {[%emt 0:00:04]} g5 {[%emt 0:00:13]} 10. Bg3 {[%emt 0:00:01]} Nxg3 {[%emt 0:00:24]} 11. hxg3 {[%emt 0:00:02]} cxd4 {[%emt 0:00:04]} 12. exd4 {[%emt 0:00:28]} e5 {[%emt 0:00:23]} 13. Nxe5 {[%emt 0:00:39]} Nxe5 {[%emt 0:00:15]} 14. dxe5 {[%emt 0:00:03]} Bf5 {[%emt 0:00:56]} 15. Qa4+ {[%emt 0:00:32]} Kd8 {[%emt 0:00:04]} 16. Rd1 {[%emt 0:00:51]} Bc5 {[%emt 0:00:25]} 17. Nf3 {[%emt 0:02:26]} Bxf2+ {[%emt 0:00:08]} 18. Ke2 {[%emt 0:00:13]} Qe3# {[%emt 0:00:03]} 0-1

[Event "Grand Prix Romania 1st Stage 2024"]
[Site "Bucuresti"]
[Date "2024.03.23"]
[Round "1.9"]
[White "Brunello, Sabino"]
[Black "Constantin, Eduard-Andrei"]
[Result "1-0"]
[ECO "A77"]
[WhiteElo "2515"]
[BlackElo "1731"]
[Annotator "RC"]
[PlyCount "71"]
[EventDate "2024.03.20"]
[EventCountry "ROU"]
[SourceTitle "playchess.com"]
[Source "ChessBase"]
[SourceQuality "1"]
[TimeControl "900+5"]

1. d4 {[%emt 0:00:02]} Nf6 {[%emt 0:00:01]} 2. c4 {[%emt 0:00:01]} c5 {[%emt 0:00:02]} 3. d5 {[%emt 0:00:01]} e6 {[%emt 0:00:01]} 4. Nc3 {[%emt 0:00:01]} exd5 {[%emt 0:00:02]} 5. cxd5 {[%emt 0:00:01]} d6 {[%emt 0:00:01]} 6. Nf3 {[%emt 0:00:05]} g6 {[%emt 0:00:09]} 7. Nd2 {[%emt 0:00:03]} Nbd7 {[%emt 0:01:58]} 8. e4 {[%emt 0:00:02]} Bg7 {[%emt 0:00:02]} 9. Be2 {[%emt 0:00:03]} a6 {[%emt 0:00:04]} 10. a4 {[%emt 0:00:02]} O-O {[%emt 0:00:14]} 11. O-O {[%emt 0:00:01]} Re8 {[%emt 0:00:04]} 12. h3 {[%emt 0:00:05]} Rb8 {[%emt 0:00:58]} 13. a5 {[%emt 0:00:24]} Qc7 {[%emt 0:01:54]} 14. Ra3 {[%emt 0:00:31]} Bf8 {[%emt 0:02:47]} 15. Qc2 {[%emt 0:00:13]} b5 {[%emt 0:01:20]} 16. axb6 {[%emt 0:00:02]} Rxb6 {[%emt 0:00:02]} 17. Nc4 {[%emt 0:00:28]} Rb4 {[%emt 0:00:18]} 18. Bf4 {[%emt 0:00:02]} Nb6 {[%emt 0:00:58]} 19. b3 {[%emt 0:00:26]} Nxc4 {[%emt 0:00:19]} 20. Bxc4 {[%emt 0:00:02]} Rb6 {[%emt 0:00:36]} 21. Bh2 {[%emt 0:00:04]} Qe7 {[%emt 0:00:43]} 22. Re1 {[%emt 0:00:03]} Nd7 {[%emt 0:00:23]} 23. f4 {[%emt 0:00:01]} Bg7 {[%emt 0:00:02]} 24. Ra2 {[%emt 0:00:49]} Bd4+ {[%emt 0:00:21]} 25. Kh1 {[%emt 0:00:04]} Kh8 {[%emt 0:01:10]} 26. Qd3 {[%emt 0:00:11]} Bb7 {[%emt 0:00:38]} 27. Rae2 {[%emt 0:00:10]} f6 {[%emt 0:00:27]} 28. Bg1 {[%emt 0:00:43]} Bxg1 {[%emt 0:00:55]} 29. Kxg1 {[%emt 0:00:01]} Rb4 {[%emt 0:00:47]} 30. Na2 {[%emt 0:00:22]} Rb6 {[%emt 0:00:02]} 31. Nc1 {[%emt 0:00:10]} Ra8 {[%emt 0:00:15]} 32. Qc3 {[%emt 0:00:10]} Kg8 {[%emt 0:00:04]} 33. Nd3 {[%emt 0:00:01]} Re8 {[%emt 0:00:06]} 34. e5 {[%emt 0:00:06]} fxe5 {[%emt 0:00:04]} 35. fxe5 {[%emt 0:00:02]} dxe5 {[%emt 0:00:07]} 36. d6+ {[%emt 0:00:02]} 1-0

[Event "Grand Prix Romania 1st Stage 2024"]
[Site "Bucuresti"]
[Date "2024.03.23"]
[Round "1.10"]
[White "Panaite, Mihai-Teodor"]
[Black "Sargsyan, Shant"]
[Result "0-1"]
[ECO "E90"]
[WhiteElo "1725"]
[BlackElo "2637"]
[Annotator "RC"]
[PlyCount "50"]
[EventDate "2024.03.20"]
[EventCountry "ROU"]
[SourceTitle "playchess.com"]
[Source "ChessBase"]
[SourceQuality "1"]
[TimeControl "900+5"]

1. d4 {[%emt 0:00:02]} g6 {[%emt 0:00:02]} 2. c4 {[%emt 0:00:04]} Bg7 {[%emt 0:00:03]} 3. Nc3 {[%emt 0:00:02]} c5 {[%emt 0:00:05]} 4. d5 {[%emt 0:00:02]} d6 {[%emt 0:00:06]} 5. Nf3 {[%emt 0:00:41]} Nf6 {[%emt 0:00:02]} 6. e4 {[%emt 0:00:05]} O-O {[%emt 0:00:07]} 7. Bd3 {[%emt 0:00:20]} e6 {[%emt 0:00:06]} 8. O-O {[%emt 0:00:03]} a6 {[%emt 0:00:07]} 9. a4 {[%emt 0:00:03]} b6 {[%emt 0:00:15]} 10. Bg5 {[%emt 0:00:04]} h6 {[%emt 0:00:11]} 11. Be3 {[%emt 0:00:38]} Re8 {[%emt 0:00:24]} 12. Qd2 {[%emt 0:00:17]} Ng4 {[%emt 0:00:14]} 13. Bf4 {[%emt 0:01:39]} e5 {[%emt 0:00:03]} 14. h3 {[%emt 0:00:28]} exf4 {[%emt 0:00:14]} 15. hxg4 {[%emt 0:00:02]} g5 {[%emt 0:00:11]} 16. Nh2 {[%emt 0:00:02]} Nd7 {[%emt 0:00:01]} 17. Rfe1 {[%emt 0:01:17]} Ne5 {[%emt 0:00:02]} 18. f3 {[%emt 0:00:06]} Qf6 {[%emt 0:00:02]} 19. a5 {[%emt 0:00:32]} Rb8 {[%emt 0:00:02]} 20. Reb1 {[%emt 0:01:12]} Bd7 {[%emt 0:00:19]} 21. b4 {[%emt 0:00:34]} Nxd3 {[%emt 0:00:04]} 22. Na4 {[%emt 0:00:54]} Qd4+ {[%emt 0:00:03]} 23. Kf1 {[%emt 0:00:10]} Nxb4 {[%emt 0:00:08]} 24. Qxd4 {[%emt 0:00:08]} Bxd4 {[%emt 0:00:01]} 25. Nxb6 {[%emt 0:00:02]} Bxa1 {[%emt 0:00:02]} 0-1

[Event "Grand Prix Romania 1st Stage 2024"]
[Site "Bucuresti"]
[Date "2024.03.23"]
[Round "1.11"]
[White "Chigaev, Maksim"]
[Black "Fileru, Maria"]
[Result "1-0"]
[ECO "C91"]
[WhiteElo "2617"]
[BlackElo "1822"]
[Annotator "TA"]
[PlyCount "77"]
[EventDate "2024.03.20"]
[EventCountry "ROU"]
[SourceTitle "playchess.com"]
[Source "ChessBase"]
[SourceQuality "1"]
[TimeControl "900+5"]

{[%evp 19,77,43,56,47,56,42,50,51,54,45,41,45,63,22,60,33,97,100,112,112,133,114,164,154,161,144,187,174,186,155,319,310,293,315,298,291,333,339,340,341,313,320,389,387,418,398,443,452,521,444,652,631,898,891,1039,1045,3368,2956,29984,29985]} 1. e4 {[%emt 0:00:03]} e5 {[%emt 0:00:01]} 2. Nf3 {[%emt 0:00:03]} Nc6 {[%emt 0:00:02]} 3. Bb5 {[%emt 0:00:03]} a6 {[%emt 0:00:02]} 4. Ba4 {[%emt 0:00:02]} b5 {[%emt 0:00:20]} 5. Bb3 {[%emt 0:00:01]} Bb7 {[%emt 0:00:01]} 6. O-O {[%emt 0:00:13]} Be7 {[%emt 0:00:05]} 7. c3 {[%emt 0:00:12]} Nf6 {[%emt 0:00:07]} 8. Re1 {[%emt 0:00:12]} O-O {[%emt 0:00:22]} 9. d4 {[%emt 0:00:03]} d6 {[%emt 0:00:11]} 10. Nbd2 {[%emt 0:00:10]} h6 {[%emt 0:00:21]} 11. Bc2 {[%emt 0:00:15]} Re8 {[%emt 0:00:24]} 12. Nf1 {[%emt 0:00:05]} Bf8 {[%emt 0:00:14]} 13. Ng3 {[%emt 0:00:07] White is slightly better.} Qc8 {[%emt 0:00:31]} 14. Bd2 {[%emt 0:01:09]} Nb8 {[%emt 0:00:39]} 15. a4 {[%emt 0:00:28]} Nbd7 {[%emt 0:00:27]} 16. Bd3 {[%emt 0:00:11]} bxa4 {[%emt 0:01:26]} 17. Rxa4 {[%emt 0:00:19]} Nb6 {[%emt 0:00:10] [#]} (17... a5 $14) 18. Ra5 $1 $16 {[%emt 0:00:10][%cal Rd4e5]} c5 {[%emt 0:00:30][%cal Bc7c5,Bc5c4][%mdl 32] [#]} 19. d5 $1 {[%emt 0:00:19] White is more active.} c4 {[%emt 0:00:20]} 20. Be2 {[%emt 0:00:18]} Nfd7 {[%emt 0:00:24]} (20... Qc7 $16) 21. Be3 $18 {[%emt 0:00:04]} Qc7 {[%emt 0:00:29]} 22. Qa1 {[%emt 0:00:10]} Be7 {[%emt 0:01:12]} 23. Nf5 {[%emt 0:00:32]} Bd8 {[%emt 0:00:17]} 24. Nd2 {[%emt 0:00:29][%cal Bf3d2,Bd2c4,Bc4a5][%mdl 32]} Nf6 $2 {[%emt 0:00:55] This costs Black the game.} (24... g6 $16 {might work better.}) 25. Bxb6 {[%emt 0:00:43]} Qxb6 {[%emt 0:00:03]} 26. Nxc4 {[%emt 0:00:02]} Qa7 {[%emt 0:00:31]} 27. Nfxd6 {[%emt 0:00:05]} Bxa5 {[%emt 0:00:09]} 28. Nxa5 {[%emt 0:00:25] A dynamic duo of knights.} Nxe4 {[%emt 0:00:37]} 29. Nxe4 {[%emt 0:00:07]} (29. Naxb7 Nxf2 30. Kf1 (30. Nxe8 $2 Nh3+ 31. Kh1 Qg1+ 32. Rxg1 Nf2#) 30... Nh1 $18) 29... Bxd5 {[%emt 0:00:02]} 30. Ng3 {[%emt 0:01:33][%cal Be4g3,Bg3f5,Bf5d6][%mdl 32]} Qc5 {[%emt 0:01:14]} 31. b4 {[%emt 0:00:22]} Qc7 {[%emt 0:00:04]} 32. c4 {[%emt 0:00:06][%cal Bc3c4,Bc4c5][%mdl 32]} Be6 {[%emt 0:00:33]} 33. c5 {[%emt 0:00:01]} f5 {[%emt 0:00:37]} 34. Bc4 {[%emt 0:00:15][%cal Be2c4,Bc4e6,Be6f5][%mdl 32]} f4 {[%emt 0:00:29]} (34... Qf7 $142 35. Bxe6 Qxe6) 35. Nf5 {[%emt 0:00:11]} (35. Qxe5 $2 {is the wrong capture.} Bxc4 36. Qc3 Bd5 $19 (36... Rxe1+ $2 37. Qxe1 Bd3 38. Nf1 $19)) 35... Kh7 {[%emt 0:00:58]} 36. Nd6 {[%emt 0:00:11]} ({Not} 36. Qxe5 Bxc4 37. Qc3 Rxe1+ 38. Qxe1 Bd5 $17) 36... Re7 {[%emt 0:00:06]} 37. Qxe5 {[%emt 0:00:05]} f3 {[%emt 0:00:18]} 38. Bxe6 {[%emt 0:00:08] White threatens Qe4+ and mate.} Rf8 {[%emt 0:00:04]} 39. Bf5+ {[%emt 0:00:09] Weighted Error Value: White=0.10 (very precise) /Black=0.61.  Loses game:     	---       	Black=1      Mistake:       	---       	Black=3      Inaccurate:     	White=2     	Black=2      OK:         	White=11    	Black=9      Strong:       	White=2     	---} 1-0

[Event "Grand Prix Romania 1st Stage 2024"]
[Site "Bucuresti"]
[Date "2024.03.23"]
[Round "1.12"]
[White "Matei, Mihai-Florin"]
[Black "Fridman, Daniel"]
[Result "0-1"]
[ECO "D00"]
[WhiteElo "1768"]
[BlackElo "2590"]
[Annotator "TA"]
[PlyCount "44"]
[EventDate "2024.03.20"]
[EventCountry "ROU"]
[SourceTitle "playchess.com"]
[Source "ChessBase"]
[SourceQuality "1"]
[TimeControl "900+5"]

{[%evp 9,44,19,14,-17,-23,-33,-20,-58,-53,-56,-25,-35,-38,-41,-38,-67,-69,-66,-75,-94,-39,-48,-60,-108,-106,-162,-162,-166,-161,-202,-189,-165,-164,-613,-607,-588,-593]} 1. d4 {[%emt 0:00:06]} d5 {[%emt 0:00:01]} 2. Nc3 {[%emt 0:00:06]} e6 {[%emt 0:00:05]} 3. Bf4 {[%emt 0:00:04]} c5 {[%emt 0:00:08]} 4. e4 {[%emt 0:00:07]} cxd4 {[%emt 0:00:24]} 5. Qxd4 {[%emt 0:00:08]} Nc6 {[%emt 0:00:03]} 6. Bb5 {[%emt 0:00:14][%cal Re4d5]} Bd7 {[%emt 0:00:02]} 7. Bxc6 {[%emt 0:00:10]} bxc6 {[%emt 0:00:02]} 8. exd5 {[%emt 0:00:15] The position is equal.} cxd5 {[%emt 0:00:03]} 9. Nf3 {[%emt 0:00:19]} Qb6 {[%emt 0:00:34]} 10. Qxb6 {[%emt 0:00:38]} axb6 {[%emt 0:00:02]} 11. Ne5 {[%emt 0:00:59]} Bb4 {[%emt 0:01:06]} 12. Nxd7 {[%emt 0:00:17]} Bxc3+ {[%emt 0:00:06]} 13. bxc3 {[%emt 0:00:03]} Kxd7 {[%emt 0:00:03]} 14. Kd2 {[%emt 0:00:23]} Ne7 {[%emt 0:00:20]} ({Black should play} 14... Nf6 $17 15. f3 Ra4) 15. Rhb1 $15 {[%emt 0:00:10]} Ra6 {[%emt 0:00:02]} 16. Rb2 {[%emt 0:00:24]} (16. Be3 $15) 16... Nc6 $17 {[%emt 0:00:04]} 17. Rab1 {[%emt 0:00:28]} (17. Ke2 $17) 17... Na5 $19 {[%emt 0:00:02] [#] And now ...Nc4+ would win.} 18. Kd3 {[%emt 0:03:37]} Nc4 {[%emt 0:00:02]} 19. Rb3 {[%emt 0:00:38]} Kc6 {[%emt 0:00:27][%cal Oe6e5]} 20. Be3 {[%emt 0:00:25]} e5 {[%emt 0:00:30]} 21. Bxb6 $2 {[%emt 0:00:52] [#]} (21. a3) 21... Rxb6 {[%emt 0:00:09]} 22. Rxb6+ {[%emt 0:00:04]} Nxb6 {[%emt 0:00:02] Weighted Error Value: White=0.54/Black=0.06 (flawless) .  Mistake:       	White=3     	Black=1      Inaccurate:     	White=2     	Black=1      OK:         	White=5     	Black=9} 0-1